bitfinex/quotes_ETHUSD_20240710
["timestamp","ask_amount","ask_price","bid_price","bid_amount"]
[1720585770076,0.25998181,3131.5,3130.8,0.3]
[1720585770844,0.25998181,3131.3,3130.8,0.3]
[1720585771163,0.25998181,3131.2,3130.8,0.3]
[1720585771376,1.33782265,3131.5,3130.8,0.3]
[1720585771575,0.25998181,3131.1,3130.8,0.3]
[1720585771879,2.34123193,3132.1,3130.8,0.3]
[1720585771880,1.33782265,3132.1,3130.8,0.3]
[1720585772181,1.33782265,3132.2,3130.9,0.06386217]
[1720585772383,1.82026584,3132.3,3130.9,0.06386217]
[1720585772540,1.33782265,3132.2,3130.9,0.06386217]
[1720585773035,1.93540009,3132.2,3130.9,0.06386217]
[1720585773344,4.15550852,3132.4,3130.9,0.06386217]
[1720585773345,1.33782265,3132.3,3130.9,0.06386217]
[1720585773541,1.33782265,3132.9,3131.5,2.55466]
[1720585773845,1.33782265,3133.0,3131.6,2.61843285]
[1720585774047,1.33782265,3133.1,3131.9,2.2768]
[1720585774243,1.33782265,3133.1,3132.5,2.55386]
[1720585774482,1.33782265,3133.1,3132.6,0.06382606]
[1720585774772,0.25998181,3133.8,3132.6,3.0]
[1720585774974,0.25998181,3133.8,3132.6,5.61760186]
[1720585775499,1.2721518,3133.9,3132.6,2.96382186]
[1720585775645,1.2721518,3133.9,3132.7,3.87834427]
[1720585775842,1.2721518,3133.9,3132.8,0.06381204]
[1720585776176,1.2721518,3133.9,3133.5,2.55298]
[1720585776857,1.2721518,3133.9,3133.4,2.5531]
[1720585777052,1.2721518,3133.9,3133.0,0.06381139]
[1720585777711,1.2721518,3133.9,3133.0,2.61722139]
[1720585778003,1.2721518,3133.9,3133.1,3.0]
[1720585778200,1.2721518,3133.9,3132.7,2.2623]
[1720585778493,1.2721518,3133.9,3132.8,0.06382243]
[1720585778911,1.2721518,3133.9,3132.2,0.06382599]
[1720585779055,1.2721518,3133.9,3132.9,2.55352]
[1720585779481,1.2721518,3133.9,3133.0,2.6172581]
[1720585779953,1.2721518,3133.9,3133.0,2.55344]
[1720585780158,1.2721518,3133.9,3133.2,2.55327]
[1720585780393,1.2721518,3133.9,3133.3,2.3609]
[1720585781094,1.2721518,3133.9,3133.4,2.5531]
[1720585781410,1.2721518,3133.9,3133.5,3.0]
[1720585781694,1.2721518,3133.9,3133.5,5.55304]
[1720585782199,1.2721518,3133.9,3133.0,2.55344]
[1720585782410,1.2721518,3133.9,3132.8,0.06381817]
[1720585782696,0.02893561,3133.8,3132.8,0.06381817]
[1720585782895,1.2721518,3133.9,3132.8,0.06381817]
[1720585783066,1.2721518,3133.9,3132.9,2.55352]
[1720585783265,1.2721518,3133.9,3133.0,3.0]
[1720585783592,1.2721518,3133.9,3133.1,0.06381684]
[1720585783892,1.2721518,3133.9,3133.2,0.06381696]
[1720585784121,1.2721518,3133.9,3133.4,2.55307]
[1720585784326,1.2721518,3133.9,3133.5,2.55302]
[1720585784499,1.2721518,3133.9,3133.5,0.0638117]
[1720585784685,1.2721518,3133.9,3133.7,2.55282]
[1720585784892,1.2721518,3133.9,3133.8,3.0]
[1720585785388,1.2721518,3133.9,3133.7,3.0]
[1720585785711,1.2721518,3133.9,3132.8,8.34555]
[1720585785712,1.2721518,3133.9,3133.2,2.55322]
[1720585785910,1.2721518,3133.9,3133.4,0.06380996]
[1720585786080,1.2721518,3133.9,3133.2,3.0]
[1720585786287,1.2721518,3133.9,3133.3,0.06381591]
[1720585786821,0.33927253,3134.1,3133.6,2.55291]
[1720585787522,0.33927253,3134.1,3133.5,2.55305]
[1720585787744,0.33927253,3134.1,3133.0,0.06380479]
[1720585787926,0.33927253,3134.1,3133.4,2.55306]
[1720585788224,0.33927253,3134.1,3133.6,2.892243]
[1720585788407,0.33927253,3134.1,3133.6,0.339273]
[1720585788594,0.33927253,3134.1,3133.6,2.892223]
[1720585788924,0.33927253,3134.1,3133.7,2.55289]
[1720585789107,0.33927253,3134.1,3133.6,0.339273]
[1720585789325,0.33927253,3134.1,3133.6,2.892203]
[1720585790029,0.33927253,3134.1,3133.6,0.339273]
[1720585790194,0.33927253,3134.1,3133.6,2.892223]
[1720585790520,0.33927253,3134.1,3133.6,0.339273]
[1720585790746,0.005,3134.1,3133.6,0.339273]
[1720585793106,0.04425919,3134.5,3133.6,0.339273]
[1720585793305,0.25998181,3134.8,3133.6,0.339273]
[1720585793921,0.25998181,3134.8,3133.3,3.0]
[1720585794410,0.25998181,3134.8,3133.5,0.334267]
[1720585794815,0.0014,3135.0,3133.5,0.334267]
[1720585794816,0.25998181,3134.9,3133.5,0.334267]
[1720585795020,0.25998181,3134.6,3133.3,3.0]
[1720585795559,0.25998181,3134.6,3133.4,0.334267]
[1720585795711,0.25998181,3134.6,3133.2,3.762]
[1720585796107,0.25998181,3134.6,3133.2,4.021982]
[1720585796350,0.25998181,3134.6,3133.2,6.575212]
[1720585796706,0.0014,3135.0,3133.2,4.021982]
[1720585796913,2.47979094,3134.5,3133.2,0.259982]
[1720585797126,0.24797909,3134.4,3133.2,0.259982]
[1720585797425,0.25998181,3134.2,3133.2,0.259982]
[1720585797623,0.02899094,3134.3,3133.3,0.06382177]
[1720585797818,0.02894114,3134.1,3133.0,2.61724484]
[1720585798044,2.4508,3134.5,3133.0,0.06381484]
[1720585798264,0.0014,3135.0,3133.6,2.55297]
[1720585798265,0.02893007,3134.0,3133.6,2.55297]
[1720585798410,0.0014,3135.0,3133.8,3.762]
[1720585798758,0.0014,3135.0,3134.2,2.55242]
[1720585799116,0.0014,3135.0,3134.0,2.55262]
[1720585799470,0.0014,3135.0,3133.7,2.286]
[1720585799613,0.0014,3135.0,3133.7,4.83883]
[1720585799818,0.0014,3135.0,3133.8,3.0]
[1720585800015,0.0014,3135.0,3133.8,2.5528]
[1720585800352,0.0014,3135.0,3133.7,2.286]
[1720585800660,0.0014,3135.0,3133.2,9.31529]
[1720585800867,0.0014,3135.0,3133.3,5.61699915]
[1720585801157,0.0014,3135.0,3133.8,6.31474]
[1720585801362,0.0014,3135.0,3133.9,2.55271]
[1720585802062,0.0014,3135.0,3134.0,2.55264]
[1720585802213,0.0014,3135.0,3134.1,2.55256]
[1720585802779,0.0014,3135.0,3134.2,2.55248]
[1720585803259,0.0014,3135.0,3134.3,2.55236]
[1720585803460,0.0014,3135.0,3134.5,3.762]
[1720585806258,0.0014,3135.0,3134.5,3.759]
[1720585809839,0.0014,3135.0,3134.6,0.06379529]
[1720585810180,0.59416107,3136.9,3135.1,2.55175]
[1720585810371,2.4476,3137.0,3135.1,2.55175]
[1720585810545,2.4476,3136.5,3134.4,3.759]
[1720585810741,0.25625518,3136.4,3134.4,3.759]
[1720585811054,2.4476,3136.5,3135.2,2.55166]
[1720585811383,0.25998181,3136.9,3134.6,5.61589571]
[1720585811384,0.25998181,3136.9,3135.6,2.55134]
[1720585811688,0.25998181,3136.9,3135.4,3.759]
[1720585811841,3.168467,3137.2,3135.4,3.759]
[1720585812049,0.25998181,3136.7,3135.4,3.759]
[1720585812386,0.25998181,3136.9,3135.4,3.759]
[1720585812541,0.25998181,3136.9,3135.6,2.55132]
[1720585812981,0.25998181,3136.9,3135.4,3.759]
[1720585813184,3.168467,3137.2,3135.4,3.82277348]
[1720585813391,2.3304,3136.5,3134.6,3.0]
[1720585813553,0.24453518,3136.4,3134.7,3.759]
[1720585813901,0.33412336,3137.1,3135.9,3.759]
[1720585814043,0.720867,3137.2,3136.0,3.759]
[1720585814243,0.720867,3137.2,3136.1,0.06375685]
[1720585814449,0.720867,3137.2,3136.2,2.55084]
[1720585814796,0.720867,3137.2,3136.3,0.06375248]
[1720585814994,0.720867,3137.2,3136.4,2.55062]
[1720585815176,0.720867,3137.2,3136.5,2.61435844]
[1720585815497,0.720867,3137.2,3137.0,2.55018]
[1720585815683,0.720867,3137.2,3137.1,3.759]
[1720585816489,0.720867,3137.2,3137.1,11.41788274]
[1720585816670,0.33107093,3137.2,3137.1,14.90677681]
[1720585816857,1.04249213,3137.2,3137.1,16.30884974]
[1720585817046,0.78190963,3137.2,3137.1,13.52456206]
[1720585817247,0.78190963,3137.2,3137.1,13.07058436]
[1720585817499,0.12693604,3137.2,3137.1,16.62468206]
[1720585817648,2.26557682,3139.7,3137.7,2.54963]
[1720585817851,0.25998181,3139.1,3138.1,3.759]
[1720585818098,0.28838194,3139.6,3137.8,0.55629609]
[1720585818244,1.75539588,3139.5,3137.1,4.30481443]
[1720585818449,0.25998181,3138.2,3136.7,0.06374457]
[1720585818650,0.25998181,3139.0,3137.7,3.759]
[1720585818888,1.5,3139.6,3137.2,3.759]
[1720585819091,0.25998181,3138.1,3137.2,3.759]
[1720585819298,0.809982,3139.5,3137.2,3.759]
[1720585819500,0.55,3139.7,3137.2,3.759]
[1720585819704,0.25998181,3137.6,3136.7,3.754]
[1720585819993,0.25998181,3138.6,3136.8,0.06375106]
[1720585820198,0.25998181,3137.6,3136.7,3.754]
[1720585820408,5.2149,3139.3,3136.7,3.754]
[1720585820614,5.2149,3139.3,3135.7,2.4984]
[1720585820615,0.25998181,3137.4,3136.1,3.754]
[1720585820762,0.25998181,3136.8,3136.1,3.754]
[1720585820958,0.25998181,3136.8,3135.6,3.754]
[1720585821164,0.25998181,3136.6,3135.7,0.06377365]
[1720585821399,0.25998181,3136.6,3135.6,3.754]
[1720585821645,0.22795,3137.2,3136.1,3.754]
[1720585821762,0.250745,3137.1,3136.1,3.754]
[1720585821959,0.25998181,3136.8,3135.6,3.754]
[1720585822257,0.25998181,3136.0,3135.1,3.754]
[1720585822511,2.3461,3136.1,3134.6,3.754]
[1720585822799,0.25998181,3135.6,3134.6,3.754]
[1720585823014,0.23461,3136.0,3134.7,0.06379629]
[1720585823182,0.49459181,3136.0,3135.1,3.754]
[1720585823381,0.25998181,3135.4,3134.6,3.754]
[1720585823876,0.25998181,3135.2,3134.6,3.754]
[1720585824497,0.25998181,3134.8,3134.1,3.754]
[1720585824807,0.25998181,3134.8,3133.6,2.36150549]
[1720585825310,0.28406918,3135.9,3133.9,2.55272]
[1720585825464,0.25998181,3135.5,3134.0,0.06379652]
[1720585825861,0.28406918,3135.9,3134.0,2.61643652]
[1720585826077,0.28406918,3135.9,3134.0,0.06379652]
[1720585826493,0.28406918,3135.9,3133.6,5.36150308]
[1720585826788,2.3063,3135.7,3133.0,2.2887]
[1720585826987,0.83563,3135.6,3133.0,2.2887]
[1720585827406,0.25998181,3135.0,3133.0,2.2887]
[1720585827616,0.25998181,3134.3,3132.5,2.55386]
[1720585827763,0.26231818,3134.2,3132.5,2.61768227]
[1720585827971,0.26231818,3134.2,3132.6,0.06382416]
[1720585828293,0.26231818,3134.2,3132.5,2.61768411]
[1720585828472,0.25998181,3134.1,3132.5,2.61768411]
[1720585828673,0.25998181,3133.8,3132.5,2.55386]
[1720585828859,0.26231818,3134.2,3132.3,2.55402]
[1720585829059,0.25998181,3134.0,3132.3,2.55402]
[1720585829299,0.26231818,3134.2,3132.3,2.55402]
[1720585829500,0.25998181,3133.8,3132.4,0.06382933]
[1720585829798,0.26231818,3134.2,3132.2,3.848]
[1720585830365,2.4138,3134.1,3131.6,3.848]
[1720585830562,0.25998181,3132.6,3131.4,2.55472]
[1720585830779,0.26761182,3134.0,3131.1,2.55497]
[1720585830780,2.4138,3132.8,3131.1,2.55497]
[1720585830988,0.24138,3132.7,3130.7,1.28024]
[1720585831190,0.24138,3132.7,3130.7,2.55532]
[1720585831715,0.25998181,3132.2,3130.7,2.55532]
[1720585831919,0.25998181,3133.4,3130.8,0.06386399]
[1720585832065,2.3447,3133.3,3131.2,2.55485]
[1720585832265,2.3447,3133.3,3131.0,6.40309]
[1720585832266,0.52044999,3133.2,3131.3,2.61865028]
[1720585832614,0.52044999,3133.2,3131.3,0.06385028]
[1720585833269,0.52044999,3133.2,3131.3,2.61868907]
[1720585833472,0.25998181,3133.0,3131.4,3.0]
[1720585833671,0.25998181,3133.0,3131.5,0.06384909]
[1720585833865,0.286515,3133.1,3131.4,3.0]
[1720585833866,0.25998181,3132.8,3131.4,3.0]
[1720585834108,0.25998181,3132.6,3131.2,3.0]
[1720585834420,0.286515,3133.1,3130.7,2.55533]
[1720585834581,0.54649681,3133.1,3131.0,2.55509]
[1720585834768,0.54649681,3133.1,3131.0,2.61894446]
[1720585835163,0.54649681,3133.1,3130.9,2.55436]
[1720585835478,0.286515,3133.1,3130.7,2.55533]
[1720585835685,0.286515,3133.1,3130.9,2.55515]
[1720585835884,0.286515,3133.1,3131.0,3.0]
[1720585836126,0.286515,3133.1,3130.3,2.5556]
[1720585836127,2.4145,3132.6,3130.3,2.5556]
[1720585836270,0.25998181,3132.0,3130.1,2.61968429]
[1720585836591,0.24145,3132.5,3130.1,2.61968429]
[1720585836978,0.25998181,3132.0,3130.1,2.61968429]
[1720585837210,2.4145,3131.8,3129.9,2.55598]
[1720585837396,2.4145,3131.8,3130.5,2.5555]
[1720585837616,4.134515,3133.1,3130.7,2.3115]
[1720585837617,2.4145,3132.4,3130.7,2.3115]
[1720585837776,2.4145,3133.1,3131.0,3.848]
[1720585837990,0.25998181,3132.9,3131.3,2.55481]
[1720585838283,0.25998181,3132.9,3131.4,0.06384936]
[1720585838514,0.26744818,3132.9,3131.1,2.61885455]
[1720585838673,2.4145,3133.1,3131.1,2.61885455]
[1720585838674,2.4145,3133.1,3131.5,2.55467]
[1720585838869,2.4145,3133.1,3131.2,3.0]
[1720585839064,0.26744818,3133.0,3131.3,5.61863431]
[1720585839326,0.25998181,3132.8,3130.7,2.3115]
[1720585839484,2.4145,3133.1,3130.8,0.06385512]
[1720585839821,0.25998181,3133.2,3130.3,2.55566]
[1720585839822,2.4363,3132.9,3130.3,2.55566]
[1720585839984,2.4363,3132.7,3129.8,3.848]
[1720585840172,2.4363,3131.7,3129.7,2.61996153]
[1720585840671,2.4363,3131.7,3129.3,2.3161]
[1720585840672,0.25998181,3131.2,3129.6,2.55623]
[1720585840871,2.4363,3131.7,3129.6,2.55623]
[1720585841104,0.24363,3131.6,3129.6,2.55623]
[1720585841412,0.25998181,3131.2,3129.6,2.55623]
[1720585841613,0.25998181,3131.2,3129.6,2.62011727]
[1720585841908,0.25998181,3131.2,3129.6,2.55623]
[1720585843295,0.25998181,3131.3,3129.8,2.55603]
[1720585843612,0.25998181,3131.2,3129.9,3.0]
[1720585843813,0.25998181,3131.2,3129.7,3.0]
[1720585843977,0.25998181,3131.2,3129.3,2.55647]
[1720585844343,0.267993,3131.5,3129.0,2.55666]
[1720585844344,0.25998181,3130.6,3129.0,2.55666]
[1720585844634,2.4574,3131.1,3129.1,0.06389776]
[1720585844804,2.4574,3131.1,3129.1,2.62053776]
[1720585845136,0.27173818,3131.0,3129.1,2.62053776]
[1720585845501,0.53171999,3131.0,3129.1,2.62053776]
[1720585845703,0.25998181,3130.8,3129.2,2.55653]
[1720585846051,0.25998181,3130.8,3129.3,2.5564]
[1720585846254,0.25998181,3130.6,3129.3,3.0]
[1720585846397,0.25998181,3130.5,3129.3,3.0]
[1720585846709,2.3039,3130.8,3128.9,3.0]
[1720585847034,0.25998181,3130.6,3128.7,3.0]
[1720585847216,2.56388181,3130.8,3128.8,0.06390795]
[1720585847388,0.23039,3130.7,3128.8,0.06390795]
[1720585847792,0.23039,3130.7,3128.9,2.55678]
[1720585848043,0.25998181,3130.6,3129.0,5.62060144]
[1720585848533,0.25998181,3130.6,3129.0,5.5567]
[1720585848737,0.25998181,3130.4,3129.0,5.5567]
[1720585849039,0.25998181,3130.4,3128.9,0.06390126]
[1720585849359,0.27942718,3130.6,3129.0,0.06391252]
[1720585849820,0.25998181,3130.4,3129.0,0.06391252]
[1720585850398,2.3135,3130.3,3128.8,3.0]
[1720585850635,0.25998181,3130.0,3128.5,2.55712]
[1720585850823,0.25998181,3130.0,3128.6,3.0]
[1720585850998,0.25998181,3129.8,3128.6,3.0]
[1720585851200,2.57084818,3130.3,3128.1,2.55743]
[1720585851201,0.25708482,3130.2,3128.1,2.55743]
[1720585851505,0.25708482,3130.2,3128.4,2.5572]
[1720585851699,0.25998181,3129.8,3128.5,0.06391501]
[1720585851916,0.25705848,3130.1,3127.4,3.848]
[1720585851917,0.25998181,3129.6,3127.4,3.848]
[1720585852223,0.25998181,3129.4,3128.1,2.55744]
[1720585852425,0.25998181,3129.6,3128.0,2.55754]
[1720585852731,0.50367181,3129.6,3128.2,2.55735]
[1720585852933,0.25998181,3129.6,3127.9,2.55761]
[1720585853121,0.26968818,3129.6,3127.9,2.55761]
[1720585853657,0.26968818,3129.6,3127.4,2.55803]
[1720585853658,2.3098,3128.9,3127.4,2.55803]
[1720585853880,2.3098,3128.9,3127.3,0.17725574]
[1720585854148,2.3098,3128.9,3127.5,2.62181564]
[1720585854369,2.3098,3128.9,3127.7,2.55778]
[1720585854658,0.25998181,3129.2,3127.7,2.55778]
[1720585854659,2.2647,3129.9,3127.9,2.55761]
[1720585854957,2.2647,3129.9,3127.8,2.55762]
[1720585855123,0.85,3130.4,3127.5,6.40594]
[1720585855124,2.4213,3129.2,3127.9,0.06392695]
[1720585855464,2.4213,3129.2,3127.9,2.55759]
[1720585855624,2.4213,3129.2,3127.9,0.06392521]
[1720585856028,2.4213,3129.2,3127.8,5.55769]
[1720585856240,0.33482942,3129.1,3127.8,3.0]
[1720585856407,0.33482942,3129.1,3127.6,5.55786]
[1720585856633,0.33482942,3129.1,3127.6,3.0]
[1720585856835,0.25998181,3128.8,3127.6,3.0]
[1720585857070,0.63725518,3129.1,3127.3,0.1133201]
[1720585857344,0.25998181,3128.8,3127.3,0.1133201]
[1720585857519,0.25998181,3128.6,3127.3,0.1133201]
[1720585857860,0.25998181,3128.8,3127.4,0.06393994]
[1720585858011,0.25998181,3128.8,3127.6,2.55785]
[1720585858208,0.25998181,3128.8,3127.7,0.06393141]
[1720585858461,0.25998181,3128.8,3127.5,2.55795]
[1720585858663,0.25998181,3128.8,3127.3,0.1133201]
[1720585858817,0.25998181,3128.8,3127.3,5.6714101]
[1720585859252,0.25998181,3128.8,3127.3,0.1133201]
[1720585859437,0.25998181,3128.8,3127.3,0.11187163]
[1720585859854,0.25998181,3128.6,3127.3,0.11187163]
[1720585860146,0.25998181,3128.2,3127.3,0.11187163]
[1720585860316,0.25998181,3128.0,3127.3,0.11187163]
[1720585860516,2.3272,3128.1,3127.3,0.11187163]
[1720585861130,2.58718181,3128.0,3127.3,0.11187163]
[1720585861531,2.3272,3128.0,3127.3,0.11187163]
[1720585861758,2.3272,3128.0,3127.5,0.00396677]
[1720585862058,2.55992,3128.0,3127.5,0.00396677]
[1720585862263,2.81990181,3128.0,3127.5,0.00396677]
[1720585862422,2.58568181,3127.6,3127.5,0.00396677]
[1720585862623,0.25998181,3127.4,3127.3,0.11187163]
[1720585862976,0.25998181,3127.0,3125.0,2.55992]
[1720585863277,0.25998181,3127.0,3124.9,3.848]
[1720585863483,0.55,3126.9,3124.6,2.56032]
[1720585863626,0.25998181,3126.2,3124.4,2.56045]
[1720585863826,0.25998181,3126.0,3124.4,2.56045]
[1720585864223,2.457,3126.1,3124.1,2.6740501]
[1720585864224,2.457,3126.1,3124.5,0.06399799]
[1720585864419,2.457,3126.7,3125.2,2.55982]
[1720585864631,2.457,3126.7,3125.3,2.62371438]
[1720585864866,2.457,3126.7,3125.6,2.55943]
[1720585865071,2.71698181,3127.2,3125.7,2.6233685]
[1720585865268,2.71698181,3127.2,3124.9,3.848]
[1720585865269,2.71698181,3127.2,3125.4,2.55961]
[1720585865479,0.25998181,3127.0,3125.3,2.55975]
[1720585865761,0.25998181,3127.0,3125.4,3.0]
[1720585866164,2.71698181,3127.2,3125.9,2.55925]
[1720585866363,2.71698181,3127.2,3125.8,2.55934]
[1720585866563,2.71698181,3127.2,3125.9,2.55923]
[1720585866739,2.71698181,3127.2,3126.0,0.06396704]
[1720585867060,2.71698181,3127.2,3125.4,3.0]
[1720585867261,2.98867999,3127.2,3125.4,3.0]
[1720585867467,2.71698181,3127.2,3125.2,3.0]
[1720585867769,2.71698181,3127.2,3125.4,2.55967]
[1720585868073,0.25998181,3127.0,3125.5,5.55958]
[1720585868429,2.98867999,3127.2,3125.5,3.06397219]
[1720585868628,2.98867999,3127.2,3125.7,2.55935]
[1720585868824,2.98867999,3127.2,3125.6,2.5595]
[1720585869050,2.71698181,3127.2,3125.4,2.55967]
[1720585869251,2.71698181,3127.2,3125.0,3.0]
[1720585869252,2.71698181,3127.2,3125.0,5.55998]
[1720585869452,2.71698181,3127.2,3125.0,3.0]
[1720585869653,2.71698181,3127.2,3125.2,2.5598]
[1720585869964,0.25998181,3126.7,3125.3,3.0]
[1720585870138,2.4807,3127.0,3124.7,2.56021]
[1720585870471,2.4807,3126.5,3124.3,2.56055]
[1720585870669,2.4807,3126.5,3124.5,2.5604]
[1720585870830,0.24807,3126.4,3124.5,2.5604]
[1720585871030,0.25998181,3126.0,3124.6,2.62429645]
[1720585871365,0.25998181,3126.0,3124.3,2.56056]
[1720585871567,2.81587405,3125.9,3124.3,2.56054]
[1720585871881,0.25998181,3125.6,3124.3,2.56054]
[1720585872038,3.12345964,3125.9,3124.3,2.56054]
[1720585872473,3.12345964,3125.9,3124.1,0.1133201]
[1720585872674,3.12345964,3125.9,3124.1,0.17732272]
[1720585872876,2.81587405,3125.9,3124.1,0.17732272]
[1720585873174,2.81587405,3125.9,3124.6,2.56026]
[1720585873373,2.81587405,3125.9,3124.4,0.0639914]
[1720585873546,2.81587405,3125.9,3124.6,2.56029]
[1720585873749,2.81587405,3125.9,3124.5,2.5604]
[1720585873935,2.4807,3125.9,3124.6,0.06398928]
[1720585874378,0.59513904,3126.5,3125.1,2.5599]
[1720585874577,3.09343904,3126.5,3125.2,5.62379215]
[1720585874790,2.4983,3126.5,3125.4,2.55967]
[1720585874992,2.4983,3126.5,3125.5,2.62355415]
[1720585875199,0.33510457,3126.8,3125.7,2.55936]
[1720585875493,2.4983,3127.1,3125.6,3.0]
[1720585875646,0.25998181,3127.0,3125.5,3.0]
[1720585875844,2.77412818,3127.1,3125.5,2.55952]
[1720585876087,0.303411,3127.0,3125.8,2.55933]
[1720585876384,2.4983,3127.1,3125.9,2.55923]
[1720585876584,2.80763764,3127.1,3125.6,3.0]
[1720585876753,2.80763764,3127.1,3125.3,6.40773]
[1720585876957,0.30676194,3127.0,3125.4,3.0]
[1720585877182,2.4983,3126.3,3125.0,3.0]
[1720585877478,2.4983,3126.3,3124.4,2.56042]
[1720585877684,0.25998181,3126.0,3124.4,2.56042]
[1720585878039,0.25998181,3126.2,3124.5,2.62439656]
[1720585878244,0.50981181,3126.2,3124.5,2.62439656]
[1720585878476,0.50981181,3126.2,3124.8,2.56016]
[1720585878694,0.50981181,3126.2,3124.9,2.62402709]
[1720585878989,2.4983,3126.3,3124.9,2.56004]
[1720585879201,2.4983,3126.3,3124.7,2.56021]
[1720585879359,0.25998181,3125.9,3124.3,2.5605]
[1720585879560,0.25998181,3125.9,3124.4,2.56048]
[1720585879741,0.25998181,3125.7,3124.1,0.1133201]
[1720585879947,0.25998181,3125.5,3124.1,0.1133201]
[1720585880961,0.25998181,3125.1,3124.1,0.1133201]
[1720585881141,0.25998181,3125.4,3124.1,0.1133201]
[1720585881341,0.25998181,3125.0,3124.1,0.1133201]
[1720585881566,0.25998181,3125.4,3124.1,0.1133201]
[1720585881918,0.25998181,3124.7,3124.1,0.1133201]
[1720585882101,2.4983,3124.6,3124.1,0.1133201]
[1720585883890,0.25998181,3125.2,3124.1,0.1133201]
[1720585883891,2.75828181,3125.2,3124.1,0.1133201]
[1720585884910,0.25998181,3125.0,3124.1,0.1133201]
[1720585885212,0.25998181,3124.8,3124.1,0.1133201]
[1720585885348,0.24983,3125.1,3124.1,0.1133201]
[1720585885546,2.75828181,3125.2,3124.1,0.1133201]
[1720585886379,0.25998181,3124.8,3124.1,0.1133201]
[1720585886999,0.25998181,3124.6,3124.1,0.1133201]
[1720585887201,0.25998181,3124.5,3124.1,0.1133201]
[1720585887508,1.606,3124.2,3121.9,1.283805]
[1720585887799,0.44657999,3124.1,3122.5,2.56204]
[1720585888001,0.25998181,3123.9,3122.5,2.56204]
[1720585888295,1.606,3124.2,3122.8,2.56179]
[1720585888502,0.42058181,3124.1,3122.2,6.41023]
[1720585888656,0.42058181,3124.1,3122.3,2.56221]
[1720585888857,0.20265818,3124.0,3122.2,3.848]
[1720585889167,0.25998181,3123.6,3122.1,2.56235]
[1720585889753,0.25998181,3123.6,3122.0,2.56243]
[1720585889960,0.25998181,3123.6,3122.2,2.56229]
[1720585890156,1.606,3124.2,3122.4,2.56212]
[1720585890373,0.25998181,3123.5,3121.7,0.06403277]
[1720585890606,0.25998181,3123.7,3122.1,2.5623]
[1720585890837,0.17666,3124.1,3122.2,5.56228]
[1720585891144,1.606,3124.2,3122.2,5.56228]
[1720585891145,0.33536526,3124.0,3123.0,2.56161]
[1720585891369,0.33536526,3124.0,3123.4,2.5613]
[1720585891643,1e-08,3124.0,3123.5,3.0]
[1720585891855,2.3631,3124.8,3123.6,2.56113]
[1720585891999,2.3631,3124.8,3123.7,5.62506334]
[1720585892198,2.3631,3124.8,3123.8,3.06401319]
[1720585892429,0.25998181,3124.9,3123.8,3.06401329]
[1720585892657,0.25998181,3124.9,3123.8,5.62497329]
[1720585892813,0.25998181,3124.9,3123.8,3.0]
[1720585893014,2.3631,3125.4,3123.0,2.56162]
[1720585893015,0.25998181,3125.2,3123.0,2.56162]
[1720585893219,0.25998181,3125.2,3122.3,0.48053216]
[1720585893220,2.3631,3124.4,3122.8,2.56173]
[1720585893404,0.25998181,3124.0,3122.2,6.3205]
[1720585893603,2.3631,3124.4,3122.7,2.56187]
[1720585893942,0.25998181,3124.3,3122.4,2.56211]
[1720585894240,2.3631,3124.4,3122.6,2.56196]
[1720585894426,2.3631,3124.4,3122.8,2.56172]
[1720585894629,2.59941,3124.4,3122.9,2.56171]
[1720585894842,2.62308181,3124.4,3123.2,2.56146]
[1720585895146,0.33533731,3125.2,3123.7,3.848]
[1720585895366,2.3631,3125.8,3124.3,3.848]
[1720585895650,2.3631,3125.8,3124.6,2.56032]
[1720585896004,2.3631,3125.8,3124.7,5.56022]
[1720585896251,2.3631,3125.8,3124.8,3.06399305]
[1720585896419,0.33521455,3126.9,3125.0,2.55999]
[1720585896420,0.25998181,3126.3,3125.0,2.55999]
[1720585896754,2.3631,3126.6,3125.1,0.0639854]
[1720585896755,0.25998181,3126.5,3125.1,0.0639854]
[1720585896903,0.49629181,3126.5,3125.2,0.06398403]
[1720585897104,0.23631,3126.5,3125.1,2.55991]
[1720585897322,0.49629181,3126.5,3125.2,3.0]
[1720585897531,0.49629181,3126.5,3125.3,2.55974]
[1720585897964,2.3631,3126.6,3125.3,2.62372055]
[1720585898105,2.3631,3126.6,3125.4,3.0]
[1720585898457,2.3631,3126.6,3125.5,0.06398054]
[1720585898758,0.33518071,3127.4,3126.0,2.55914]
[1720585898759,2.3631,3127.2,3126.0,2.55914]
[1720585898921,2.3631,3127.2,3126.1,2.55909]
[1720585899125,2.3631,3127.2,3126.2,3.0]
[1720585899309,0.25998181,3127.7,3126.2,3.0]
[1720585899502,0.25835818,3127.7,3126.2,3.0]
[1720585899710,0.51833999,3127.7,3125.9,0.06396491]
[1720585899905,2.3236,3127.8,3126.7,2.55859]
[1720585900129,2.3236,3127.8,3126.8,5.62243204]
[1720585900434,2.58358181,3128.4,3126.8,3.0]
[1720585900605,2.3236,3129.0,3127.2,3.848]
[1720585900847,2.3236,3129.0,3127.9,2.55762]
[1720585901009,2.58358181,3129.6,3128.0,3.0]
[1720585901314,0.25835818,3129.5,3127.9,3.0]
[1720585901548,0.25835818,3129.5,3127.9,5.55758]
[1720585901818,0.51833999,3129.5,3127.9,5.55758]
[1720585902019,1.84193999,3129.6,3127.9,5.55758]
[1720585902225,0.23236,3129.5,3127.9,3.0]
[1720585902438,0.23236,3129.5,3126.6,2.2636]
[1720585902610,1.5,3129.2,3126.3,2.55893]
[1720585902920,1.5,3129.4,3126.7,2.5586]
[1720585903252,0.510836,3129.3,3126.8,0.06395307]
[1720585903457,3.0,3129.4,3127.0,2.55828]
[1720585903754,0.55,3129.9,3127.0,2.55828]
[1720585903961,4.5,3129.2,3126.1,2.55905]
[1720585904109,3.0,3129.1,3126.3,2.55892]
[1720585904312,3.0,3129.1,3126.4,2.55884]
[1720585904313,0.75,3129.0,3126.4,2.55884]
[1720585904512,0.55,3128.9,3126.4,2.55884]
[1720585904937,2.3734,3128.8,3126.4,2.55885]
[1720585905139,0.55,3128.7,3126.4,2.55885]